Cogmind - Beta 13 @@@ ROGUE MODE // 2024.04.06 @ 13:55:05 Player: TurnLeft25 Result: Destroyed by H-61 Shepherd with Heavy Assault Cannon Performance ------------- Evolutions (3) 1500 Regions Visited (7) 1400 Robots Destroyed (97) 485 Value Destroyed (3470) 3470 Prototype IDs (4) 80 Alien Tech Used (0) 0 Bonus (1107) 1107 TOTAL SCORE: 8042 Bonus ------- High Alert Combat Kills 303 Follower Combat Kills 292 Entered Garrisons 200 Entered DSFs 500 Friendly Fire -188 Cogmind --------- Core Integrity 0/700 Matter 240/300 Energy 98/100 System Corruption 2% Temperature Cool (0) Movement Core (550) Ox10 Location -7/DSF Parts ------- > --- POWER (1) -------- (None) > --- PROPULSION (3) --- (None) > --- UTILITY (5) ------ Large Storage Unit Advanced Visual Processing Unit Improved Signal Interpreter Improved Light Armor Plating > --- WEAPON (4) ------- Gauss Rifle Heavy Machine Gun > --- INVENTORY (15) --- Armored Treads Armored Treads Armored Treads Armored Treads Improved Carbon-fiber Leg Improved Sensor Array Advanced Targeting Computer Authchip [R/Combat] Gatling Laser Gauss Rifle Gauss Rifle Coil Gun Peak State ------------ > --- POWER ------------ Light Fission Core > --- PROPULSION ------- Improved Carbon-fiber Leg Improved Titanium Leg Advanced VSS Leg > --- UTILITY ---------- Advanced Heat Sink Large Storage Unit Advanced Visual Processing Unit Improved Signal Interpreter Authchip [Device] > --- WEAPON ----------- Gatling Laser Heavy Ion Cannon Gauss Rifle KE Penetrator > --- INVENTORY -------- Light Angular Momentum Engine Armored Treads Armored Treads Armored Treads Armored Treads Improved Sensor Array Advanced Targeting Computer Improved Light Armor Plating Insulated Plating Authchip [R/Combat] Gatling Laser Gauss Rifle Gauss Rifle Coil Gun Heavy Machine Gun [Rating: 59] Favorites ----------- Power Light Nuclear Core Engine Improved Deuterium Engine Power Core Light Nuclear Core Propulsion Improved Titanium Leg Treads Light Treads Leg Improved Titanium Leg Utility Improved Signal Interpreter Device Improved Heat Sink Storage Large Storage Unit Processor Improved Signal Interpreter Hackware Hacking Suite Protection Improved Light Armor Plating Weapon Heavy Assault Rifle Energy Gun Beam Rifle Energy Cannon Heavy Particle Cannon Ballistic Gun Heavy Assault Rifle Ballistic Cannon Assault Cannon Build | -11 -10 -9 -8 -7 -7 -7 -7 ------- Run | Yrd Mat Mat Mat Fac Gar Fac DSF Slots Evolved 6 | . . 2 2 2 . . . Power . | . . . . . . . . Propulsion 1 | . . . . 1 . . . Utility 3 | . . 1 2 . . . . Weapon 2 | . . 1 . 1 . . . Parts Attached 91 | 6 1 8 34 14 19 . 9 Power 15 | 1 . 1 6 2 4 . 1 Engine 8 | 1 . 1 4 1 . . 1 Core 7 | . . . 2 1 4 . . Reactor . | . . . . . . . . Propulsion 18 | 2 . 1 6 3 4 . 2 Treads 4 | 2 . 1 1 . . . . Leg 14 | . . . 5 3 4 . 2 Wheel . | . . . . . . . . Hover . | . . . . . . . . Flight . | . . . . . . . . Utility 30 | 1 1 2 15 3 4 . 4 Device 7 | . . 1 3 2 1 . . Storage 3 | 1 . . 2 . . . . Processor 4 | . 1 1 2 . . . . Hackware 2 | . . . 1 . . . 1 Protection 14 | . . . 7 1 3 . 3 Artifact . | . . . . . . . . Weapon 28 | 2 . 4 7 6 7 . 2 Energy Gun 8 | . . 3 1 2 2 . . Energy Cannon 2 | . . . 1 . 1 . . Ballistic Gun 16 | 2 . 1 5 2 4 . 2 Ballistic Cannon 2 | . . . . 2 . . . Launcher . | . . . . . . . . Special Weapon . | . . . . . . . . Impact Weapon . | . . . . . . . . Slashing Weapon . | . . . . . . . . Piercing Weapon . | . . . . . . . . Special Melee Weapon . | . . . . . . . . Unidentified Prototypes 2 | . . 1 . 1 . . . Parts Lost 35 | . . 3 12 4 6 . 10 Power 5 | . . 1 2 . 1 . 1 Propulsion 7 | . . 1 2 1 . . 3 Utility 11 | . . . 6 1 1 . 3 Weapon 12 | . . 1 2 2 4 . 3 Highest Loss Streak 9 | . . 2 7 3 3 . 9 To Critical Strikes . | . . . . . . . . Average Slot Usage (%) 95 | . 85 92 93 99 98 . 92 Engine 4 | . 14 11 3 6 . . 3 Core 3 | . . . 5 . 6 . 2 Treads 5 | . 28 19 3 . . . . Leg 15 | . . . 13 22 21 . 21 Device 6 | . . 11 7 7 7 . 5 Storage 8 | . 14 11 8 7 7 . 7 Processor 12 | . . 11 10 15 15 . 15 Hackware 1 | . . . 3 . . . . Protection 6 | . . . 9 6 6 . 5 Energy Gun 6 | . . 14 8 3 6 . 7 Energy Cannon 4 | . . . 3 4 6 . 6 Ballistic Gun 15 | . 28 13 15 13 14 . 15 Ballistic Cannon 1 | . . . . 6 1 . . Naked Turns . | . . . . . . . . Heaviest Build 55 | 10 10 22 42 55 52 52 54 Greatest Support 60 | 40 40 40 40 60 58 58 58 Greatest Overweight (x) 2 | 2 . 1 1 1 1 . . Average Overweight (x) . | . . . . . . . . Largest Inventory Capacity 15 | 8 8 8 15 15 15 15 15 Average Capacity 12 | 7 8 8 9 15 15 15 15 Most Carried 15 | 5 4 8 14 15 15 15 15 Average Carried 10 | 2 1 5 7 14 14 15 14 Final Capacity 15 | 8 8 8 15 15 15 15 15 Final Carried 15 | 1 3 8 13 15 15 15 12 Class Distribution -------------------- 50% | Scavenger-Tank 28% | Tank 13% | Mutant 4% | Scavenger-Skirmisher Dominant Class ---------------- Mutant | -10/Materials Scavenger-Skirmisher | -9/Materials Scavenger-Tank | -8/Materials Tank | -7/Factory Scavenger-Tank | -7/Garrison Scavenger-Tank | -7/Factory Scavenger-Tank | -7/DSF Resources | -11 -10 -9 -8 -7 -7 -7 -7 ----------- Run | Yrd Mat Mat Mat Fac Gar Fac DSF Matter Collected 2782 | 250 111 94 967 447 753 . 160 Remotely . | . . . . . . . . Salvage Created 4378 | . 289 343 1769 475 913 . 589 Parts 222 | . 21 25 86 29 45 . 16 Haulers Intercepted . | . . . . . . . . Recyclers Shooed 7 | . 4 . 3 . . . . Parts Field Recycled . | . . . . . . . . Retrieved Matter . | . . . . . . . . Parts Self-Destructed . | . . . . . . . . Prevented . | . . . . . . . . Kills | -11 -10 -9 -8 -7 -7 -7 -7 ------- Run | Yrd Mat Mat Mat Fac Gar Fac DSF Combat Hostiles Destroyed 75 | . 6 4 25 10 23 . 7 Guns 59 | . 6 4 21 6 16 . 6 Cannons 15 | . . . 3 4 7 . 1 AOE 1 | . . . 1 . . . . Classes Destroyed 13 | . 6 1 1 3 1 . 1 Builder 1 | . 1 . . . . . . Recycler 9 | . 1 1 7 . . . . Mechanic 1 | . . . . 1 . . . Operator 2 | . 1 1 . . . . . Watcher 9 | . 2 2 3 2 . . . Swarmer 16 | . 4 . 3 4 2 . 3 Cutter 2 | . . . . . 2 . . Grunt 28 | . 2 1 12 3 10 . . Brawler 2 | . . . . 1 1 . . Sentry 18 | . . 3 8 1 6 . . Specialist 3 | . . . . . . . 3 Hunter 5 | . . . 2 . 2 . 1 Programmer 1 | . . . . 1 . . . Best Kill Streak 7 | . 7 3 4 4 7 . 5 Combat Bots Only 7 | . 6 2 3 4 7 . 5 Max Kills in Single Turn 2 | . 1 1 2 2 2 . 1 Gunslinging . | . . . . . . . . Exploded 1 | . . . 1 . . . . Melee . | . . . . . . . . Uniques/NPCs Destroyed . | . . . . . . . . Combat | -11 -10 -9 -8 -7 -7 -7 -7 -------- Run | Yrd Mat Mat Mat Fac Gar Fac DSF Hostile Shots Fired 665 | . 60 29 156 71 250 . 99 Missed 187 | . 26 4 27 18 80 . 32 Damage Taken 6932 | . 288 338 1982 939 1801 . 1584 Core 962 | . 33 63 157 92 216 . 401 Absorbed by Shields 86 | . . . . . 71 . 15 Regen/Repaired (Parts) 276 | . . . 276 . . . . Core Remaining (%) 85 | 100 86 84 71 . . . . Volleys Fired 273 | . 46 26 95 30 55 . 21 Largest 4 | . 2 3 3 4 4 . 4 Hottest 206 | . 40 135 140 190 191 . 206 Shots Fired 819 | . 92 60 276 120 202 . 69 Gun 671 | . 92 60 243 82 139 . 55 Cannon 148 | . . . 33 38 63 . 14 Launcher . | . . . . . . . . Special . | . . . . . . . . Kinetic 525 | . 92 29 155 81 125 . 43 Thermal 256 | . . 31 121 9 69 . 26 Explosive . | . . . . . . . . Electromagnetic 38 | . . . . 30 8 . . Robot Hit Streak 11 | . 5 6 10 7 11 . 5 Robot Miss Streak 9 | . 9 3 6 7 9 . 7 Penetration Max . | . . . . . . . . Secondary Targets 4 | . 2 1 1 . . . . Max Gunslinging Chain 1 | . 1 1 1 . . . . Shots Hit Robots 458 | . 35 37 163 62 127 . 34 Core Hits 252 | . 21 16 69 31 98 . 17 Critical Kills 1 | . . . 1 . . . . Critical Parts Destroyed 2 | . . . 1 . . . 1 Critical Strikes 12 | . . 2 4 3 2 . 1 Burn 4 | . . 2 2 . . . . Destroy 3 | . . . 2 . . . 1 Blast 4 | . . . . 3 1 . . Corrupt 1 | . . . . . 1 . . Melee Attacks . | . . . . . . . . Impact . | . . . . . . . . Slashing . | . . . . . . . . Piercing . | . . . . . . . . Sneak Attacks . | . . . . . . . . Combat Hostiles . | . . . . . . . . Follow-up Attacks . | . . . . . . . . Damage Inflicted 8328 | . 339 463 2847 1222 2674 . 783 Guns 6177 | . 339 449 2398 675 1752 . 564 Cannons 2061 | . . . 400 520 922 . 219 Explosions 42 | . . . 42 . . . . Melee . | . . . . . . . . Ramming 48 | . . 14 7 27 . . . Kinetic 4910 | . 339 123 1493 937 1661 . 357 Thermal 3126 | . . 326 1305 125 944 . 426 Explosive . | . . . . . . . . Electromagnetic 244 | . . . 42 133 69 . . Impact . | . . . . . . . . Slashing . | . . . . . . . . Piercing . | . . . . . . . . Highest Corruption 2 | . . . 1 2 2 2 2 Average Corruption 1 | . . . 1 1 2 2 2 Corruption Purged . | . . . . . . . . Corruption Blocked . | . . . . . . . . Effects 27 | . . . 9 3 14 . 1 Message Errors 7 | . . . 3 . 4 . . Matter Fused 3 | . . . 1 1 1 . . Heat Flow Errors 3 | . . . . 1 2 . . Energy Discharges 3 | . . . 2 . 1 . . Parts Rejected 1 | . . . . . . . 1 Parts Fused 1 | . . . 1 . . . . Data Loss (minor) 5 | . . . 2 1 2 . . Data Loss (major) 2 | . . . . . 2 . . Misfires 2 | . . . . . 2 . . Overload Shots . | . . . . . . . . Overflow Damage 55 | . . . 1 52 . . 2 Projectiles 54 | . . . . 52 . . 2 Explosions 1 | . . . 1 . . . . Melee . | . . . . . . . . Knockbacks 4 | . . . . 4 . . . Impact . | . . . . . . . . Kinetic 4 | . . . . 4 . . . Secondary . | . . . . . . . . Self-Inflicted Damage 42 | . . . 42 . . . . Shots 1 | . . . 1 . . . . Rammed 3 | . . 3 . . . . . Targets Rammed 7 | . . 3 2 2 . . . Kicked 4 | . . . 2 2 . . . Crushed . | . . . . . . . . Highest Temperature 666 | . 6 301 666 303 304 . 43 Average Temperature 120 | . 6 100 142 105 119 . 11 Received Heat Transfer 1772 | . 24 123 765 288 536 . 36 Effects 31 | . . 1 23 3 4 . . Shutdowns 3 | . . . 3 . . . . Energy Bleed 3 | . . . 2 . 1 . . Interference 10 | . . 1 3 3 3 . . Matter Decay 2 | . . . 2 . . . . Short Circuit 1 | . . . 1 . . . . Damage (minor) 1 | . . . 1 . . . . Damage (major) 11 | . . . 11 . . . . Siege Activations . | . . . . . . . . Robots Corrupted . | . . . . . . . . Combat Hostiles . | . . . . . . . . Parts Fried . | . . . . . . . . Impact Corruptions . | . . . . . . . . Robots Melted . | . . . . . . . . Combat Hostiles . | . . . . . . . . Parts Melted 8 | . . 1 4 1 1 . 1 Heat Transferred 6273 | . . 877 2923 185 1517 . 771 Parts Sabotaged . | . . . . . . . . Parts Stolen . | . . . . . . . . Parts Stripped . | . . . . . . . . Power Chain Reactions . | . . . . . . . . Alert | -11 -10 -9 -8 -7 -7 -7 -7 ------- Run | Yrd Mat Mat Mat Fac Gar Fac DSF Peak Influence 940 | . 242 296 400 239 940 498 563 Initial 493 | . . 102 124 149 54 493 348 Average 277 | . 107 203 239 108 544 494 438 Maximum Alert Level 3 | . 1 1 2 1 3 2 2 Low Security (%) 38 | 100 62 50 32 69 10 . . Level 1 40 | . 37 49 64 30 21 . 38 Level 2 13 | . . . 3 . 41 100 61 Level 3 6 | . . . . . 26 . . Level 4 . | . . . . . . . . Level 5 . | . . . . . . . . High Security . | . . . . . . . . Max Security . | . . . . . . . . Squads Dispatched 16 | . 1 2 7 4 . . 2 Investigation 4 | . . . 3 1 . . . Extermination 2 | . . . . 2 . . . Reinforcement 7 | . 1 2 1 1 . . 2 Assault . | . . . . . . . . Garrison 3 | . . . 3 . . . . Intercept . | . . . . . . . . Searches Triggered . | . . . . . . . . Construction Impeded . | . . . . . . . . Haulers Reinforced . | . . . . . . . . Active Scanning Responses . | . . . . . . . . Cargo Convoy Interrupts . | . . . . . . . . Stealth | -11 -10 -9 -8 -7 -7 -7 -7 --------- Run | Yrd Mat Mat Mat Fac Gar Fac DSF Distress Signals 6 | . 1 1 4 . . . . Communications Jammed . | . . . . . . . . Distress Signals . | . . . . . . . . Times Spotted 125 | . 16 9 35 17 34 . 14 Peak Tracking Total 9 | . 4 4 4 4 9 . 7 Tactical Retreats 10 | . 3 1 1 1 2 . 2 Traps | -11 -10 -9 -8 -7 -7 -7 -7 ------- Run | Yrd Mat Mat Mat Fac Gar Fac DSF Traps Triggered 8 | . . . 3 . 2 . 3 Indirectly . | . . . . . . . . Trap Hack Attempts . | . . . . . . . . Triggered . | . . . . . . . . Disarmed . | . . . . . . . . Reprogrammed . | . . . . . . . . Reused . | . . . . . . . . Traps Extracted . | . . . . . . . . Installed . | . . . . . . . . Triggered . | . . . . . . . . Machines | -11 -10 -9 -8 -7 -7 -7 -7 ---------- Run | Yrd Mat Mat Mat Fac Gar Fac DSF Machines Disabled 5 | . . . 2 . 1 . 2 Max in Single Turn 1 | . . . 1 . 1 . 1 Garrison Access 1 | . . . 1 . . . . Machines Repaired . | . . . . . . . . Machines Dismantled . | . . . . . . . . Machines Sabotaged . | . . . . . . . . Overloaded Fab Kills . | . . . . . . . . Hacking | -11 -10 -9 -8 -7 -7 -7 -7 --------- Run | Yrd Mat Mat Mat Fac Gar Fac DSF Machines Accessed 22 | . 1 1 9 8 2 1 . Terminals 17 | . 1 1 7 5 2 1 . Fabricators 1 | . . . . 1 . . . Repair Stations 2 | . . . 1 1 . . . Recycling Units . | . . . . . . . . Scanalyzers . | . . . . . . . . Garrison Access 2 | . . . 1 1 . . . Total Hacks 62 | . 5 5 29 17 5 1 . Successful 21 | . 3 1 12 3 1 1 . Failed 41 | . 2 4 17 14 4 . . Catastrophic 8 | . . . 4 4 . . . Database Lockouts . | . . . . . . . . Manual . | . . . . . . . . Terminals 51 | . 5 5 26 9 5 1 . Fabricators 3 | . . . . 3 . . . Repair Stations 5 | . . . 2 3 . . . Recycling Units . | . . . . . . . . Scanalyzers . | . . . . . . . . Garrison Access 3 | . . . 1 2 . . . Terminal Hacks 16 | . 3 1 9 1 1 1 . Record 1 | . . . 1 . . . . Prototype ID Bank 1 | . . . 1 . . . . Open DSF 1 | . . . . . . 1 . Level Access Points 1 | . 1 . . . . . . Emergency Access Points 2 | . . . 1 . 1 . . Terminal Index 1 | . . . 1 . . . . Alert Level 1 | . . . 1 . . . . Unreport Threat 2 | . . . 1 1 . . . Locate Traps 2 | . 1 . 1 . . . . Surveillance Status 1 | . . . 1 . . . . Patrol Status 1 | . . . 1 . . . . Transport Status 1 | . 1 . . . . . . Zone Layout 1 | . . 1 . . . . . Fabricator Hacks . | . . . . . . . . Repair Station Hacks 3 | . . . 2 1 . . . Scan Component 2 | . . . 1 1 . . . Repair 1 | . . . 1 . . . . Recycling Unit Hacks . | . . . . . . . . Scanalyzer . | . . . . . . . . Garrison Access Hacks 2 | . . . 1 1 . . . Unlock Access 1 | . . . . 1 . . . Seal Access 1 | . . . 1 . . . . Unauthorized Hacks . | . . . . . . . . Terminals . | . . . . . . . . Fabricators . | . . . . . . . . Repair Stations . | . . . . . . . . Recycling Units . | . . . . . . . . Scanalyzers . | . . . . . . . . Garrison Access . | . . . . . . . . Data Cores Recovered . | . . . . . . . . Used . | . . . . . . . . Hacking Detections 20 | . 1 1 8 8 2 . . Full Trace Events 6 | . . . 4 1 1 . . Feedback Events 2 | . . . 1 1 . . . Corruption 2 | . . . 1 1 . . . Feedback Blocked . | . . . . . . . . Robot Schematics Acquired . | . . . . . . . . Robots Built . | . . . . . . . . Authchips . | . . . . . . . . Time . | . . . . . . . . Total Robot Build Rating . | . . . . . . . . Part Schematics Acquired . | . . . . . . . . Parts Built . | . . . . . . . . Authchips . | . . . . . . . . Time . | . . . . . . . . Total Part Build Rating . | . . . . . . . . Parts Repaired 1 | . . . 1 . . . . Time 38 | . . . 38 . . . . Parts Recycled . | . . . . . . . . Recycled Matter . | . . . . . . . . Retrieved Matter . | . . . . . . . . Retrieved Components . | . . . . . . . . Parts Scanalyzed . | . . . . . . . . Part Schematics Acquired . | . . . . . . . . Parts Damaged . | . . . . . . . . Bothacking | -11 -10 -9 -8 -7 -7 -7 -7 ------------ Run | Yrd Mat Mat Mat Fac Gar Fac DSF Used RIF Installer . | . . . . . . . . Robots Hacked . | . . . . . . . . Non-combat . | . . . . . . . . Combat . | . . . . . . . . Robot Hacks Applied . | . . . . . . . . Relay Couplers Released . | . . . . . . . . Fabnet Peak Effective % . | . . . . . . . . Robots Rewired . | . . . . . . . . Allies Hacked . | . . . . . . . . Hacks Repelled . | . . . . . . . . Allies | -11 -10 -9 -8 -7 -7 -7 -7 -------- Run | Yrd Mat Mat Mat Fac Gar Fac DSF Total Allies 2 | . . . . . 2 . . Largest Group 2 | . . . . . 2 . . Highest-Rated Group 157 | . . . . . 157 . . Highest-Rated Ally 95 | . . . . . 95 . . Total Orders . | . . . . . . . . Ally Attacks 22 | . . . . . 22 . . Total Damage 1071 | . . . . . 1071 . . Kills 11 | . . . . . 11 . . Allies Corrupted . | . . . . . . . . Allies Melted . | . . . . . . . . Intel | -11 -10 -9 -8 -7 -7 -7 -7 ------- Run | Yrd Mat Mat Mat Fac Gar Fac DSF Robot Analysis Total . | . . . . . . . . Derelict Logs Recovered . | . . . . . . . . Drone Launches . | . . . . . . . . Drone Recoveries . | . . . . . . . . Exploration | -11 -10 -9 -8 -7 -7 -7 -7 ------------- Run | Yrd Mat Mat Mat Fac Gar Fac DSF Turns Passed 4667 | 64 390 352 1437 1059 1168 4 193 Spaces Moved 2405 | 45 167 158 599 621 718 4 93 Core 23 | 23 . . . . . . . Treads 474 | 22 167 158 127 . . . . Legs 1908 | . . . 472 621 718 4 93 Wheels . | . . . . . . . . Hover . | . . . . . . . . Flight . | . . . . . . . . Fastest Speed 50 | 50 160 160 120 126 116 116 113 Average Speed 141 | 117 160 163 161 133 129 116 113 Slowest Speed 250 | 160 160 240 250 200 200 116 116 Overloaded Moves . | . . . . . . . . Propulsion Burnouts . | . . . . . . . . Robots Hopped . | . . . . . . . . Cave-ins Triggered . | . . . . . . . . Exploration Rate (%) 39 | 5 28 22 49 17 73 . 85 Regions Visited 7 Branch Regions . Pre-discovered Areas . | . . . . . . . . Known Exits Taken 5 | . 1 1 1 1 . 1 . Unknown Exits Taken 1 | 1 . . . . . . . Scrap Searched . | . . . . . . . . Spaces Dug . | . . . . . . . . Terrain Destroyed 24 | . . . 19 2 3 . . Melee . | . . . . . . . . Projectile 24 | . . . 19 2 3 . . AOE . | . . . . . . . . Terrain Rammed . | . . . . . . . . Walls Destroyed . | . . . . . . . . Machines Disabled . | . . . . . . . . Actions | -11 -10 -9 -8 -7 -7 -7 -7 --------- Run | Yrd Mat Mat Mat Fac Gar Fac DSF Total 3094 | 55 216 205 866 782 834 3 133 Wait 166 | . . . 70 85 8 . 3 Move 2394 | 44 166 157 598 621 712 3 93 Hop . | . . . . . . . . Pick Up 88 | 5 3 9 38 16 16 . 1 Fast Attach 13 | 2 . 1 6 2 . . 2 Attach 41 | 4 1 4 14 6 8 . 4 Detach . | . . . . . . . . Swap 37 | . . 3 14 6 11 . 3 Drop 68 | . . 2 29 14 18 . 5 Fire 273 | . 46 26 95 30 55 . 21 Melee . | . . . . . . . . Ram . | . . . . . . . . Kick 4 | . . . 2 2 . . . Crush 3 | . . 3 . . . . . Escape Stasis 7 | . . . . . 6 . 1 Rewire . | . . . . . . . . Trap . | . . . . . . . . Miscellaneous . | . . . . . . . . Route ------- -11/Scrapyard -10/Materials (discovered 3 exits: *Mat x3) -9/Materials -8/Materials -7/Factory -7/Garrison (discovered 3 exits: *Fac x3) -7/Factory -7/DSF (discovered 1 exit: *Fac) History --------- Turn | Location | Event 33 | -11/Scrapyard | Discovered new exit (range 12) 65 | -11/Scrapyard | Entered Materials 192 | -10/Materials | Discovered new exit (range 8) 228 | -10/Materials | Identified exit to Materials 313 | -10/Materials | Build established: Mutant 455 | -10/Materials | Entered another Materials area 455 | -9/Materials | Evolved 2 slots: Utility x1, Weapon x1 705 | -9/Materials | Discovered new exit (range 16) 806 | -9/Materials | Identified exit to Materials 807 | -9/Materials | Entered another Materials area 807 | -8/Materials | Evolved 2 slots: Utility x2 1118 | -8/Materials | Lost 7 parts (1p2n3u1w) 1587 | -8/Materials | Build established: Scavenger-Tank 1643 | -8/Materials | Garrison activated, responded to threat 2027 | -8/Materials | Repaired Arm. Treads 2173 | -8/Materials | Discovered new exit (range 16) 2242 | -8/Materials | Identified exit to Factory 2244 | -8/Materials | Entered Factory 2244 | -7/Factory | Evolved 2 slots: Propulsion x1, Weapon x1 2811 | -7/Factory | Build established: Tank 3046 | -7/Factory | Lost 3 parts (1u2w) 3303 | -7/Factory | Identified exit to Garrison 3303 | -7/Factory | Entered Garrison 3438 | -7/Garrison | Lost 3 parts (1p2w) 3451 | -7/Garrison | Destroyed 7 combat bots 3484 | -7/Garrison | Triggered checkpoint 3492 | -7/Garrison | Triggered checkpoint 3541 | -7/Garrison | Lost 3 parts (1u2w) 3600 | -7/Garrison | Discovered new exit (range 10) 3629 | -7/Garrison | Found embedded Infiltrators 3647 | -7/Garrison | Identified exit to Factory 3648 | -7/Garrison | Attempted to access garrison exit controls, blocked by remote lockdown 3676 | -7/Garrison | Triggered checkpoint 3819 | -7/Garrison | Build established: Scavenger-Tank 3836 | -7/Garrison | Triggered checkpoint 4153 | -7/Garrison | Discovered exit to Factory (range 13) 4169 | -7/Garrison | Attempted to access garrison exit controls, blocked by remote lockdown 4236 | -7/Garrison | Triggered checkpoint 4348 | -7/Garrison | Triggered checkpoint 4414 | -7/Garrison | Triggered checkpoint 4459 | -7/Garrison | Discovered exit to Factory (range 12) 4471 | -7/Garrison | Entered Factory 4474 | -7/Factory | Identified exit to DSF 4475 | -7/Factory | Entered DSF 4510 | -7/DSF | Additional patrols routed to DSF 4533 | -7/DSF | Core integrity fell below 50% 4576 | -7/DSF | Discovered new exit (range 20) 4611 | -7/DSF | Identified exit to Factory 4655 | -7/DSF | Core integrity fell below 20% 4668 | -7/DSF | Destroyed by H-61 Shepherd with Heavy Assault Cannon Last Messages --------------- 04643_ Slug penetrates Wall. 04643_ Slug penetrates H-61 Shepherd. 04644_ Imp. Carbon-fiber Leg destroyed. 04644_ Hvy. Ion Cannon destroyed. 04646_ Slug penetrates Wall. 04646_ Slug penetrates H-61 Shepherd. 04649_ Imp. Titanium Leg destroyed. 04651_ Lgt. Angular Momentum Engine destroyed. 04655_ Slug penetrates Wall. 04656_ Penetrated by Slug. 04656_ KE Penetrator destroyed. 04658_ Knocked back. 04658_ Insulated Plating destroyed. 04661_ Gatling Laser destroyed. 04661_ Slug penetrates X-67 Chaingunner. 04663_ Penetrated by Slug. 04663_ Adv. VSS Leg destroyed. 04664_ Slug penetrates X-67 Chaingunner. 04667_ Critical hit (Destroy). 04667_ Slug penetrates X-67 Chaingunner. Map ----- +----------------------------------------------------+ | ????????????????????????????????? | | ????????????????????????????????? | | ????????????????????????????????? | | ????????????????????????????????? | | ????????????????????????????????? | | ????????????????????????????????? | | ????########????????????????????? | | #### #????????????????????? | | # #????????????????????? | | #????????????????????? | | #????????????????????? | | ### ###????????????????????? | | #?????#??????????????????????? | | ####????????????????????????????? | | ????????????????????????????????? | | ????????????????????????????????? | | ????????????????????????????????? | | ????????????????????????????????? | | ????????????????????????????????? | | ?????? ???????????????????????? | | ?###?? ??#???###??######??????? | | !!!### ###!!?# ?# !!#??????? | | !!!## a##!!!# ## !!#??????? | | #??????? | | H %%###????? | | % %@%#????? | | ===## ##!!!#!!!## %%###????? | | ??=#?# #??????????# %x #??????? | | ???### ###??????###x ###??????? | | ????!! **???????# #???????? | | ????!! **???????+ #???????? | | ?????! *???????## #???????? | | ???### ###??????### ##???????? | | ???#!! #??????#== =#???????? | | ???#!! #??????#== =#???????? | | ####!! ########## ##???????? | | ===#?# #?#===#==### ###??????? | | ===### ###===#==##=*%""####???? | | % [[[*%%%%%%%#???? | | %= ==%% <%%##"#???? | | ===# % =#===#==##"%%%"#??#???? | | #### #########"""""#??????? | | ???#########???????##"####??????? | | ????????????????????#"#?????????? | | ????????????????????#""?????????? | | ????????????????????####????????? | | ????????????????????????????????? | | ????????????????????????????????? | | ????????????????????????????????? | | ????????????????????????????????? | +----------------------------------------------------+ Best States ------------- Heat Dissipation 53 Energy Generation 18 Energy Capacity 290 Matter Stores 300 Matter Capacity 300 Sight Range 20 Terrain Scan Density 10 Armor Coverage 600 Evasion (%) 55 Recoil Reduction 2 Offensive Hacking 10 Authchip Count 1 Item Schematics ----------------- None Robot Schematics ------------------ None Fabricated ------------ Nothing Alien Tech Used ----------------- None Achievements -------------- None Challenges ------------ None Game ------ Seed ArmageddonFrostAmplifier Manual? 0 Play Time 00:46:18 Cumulative 9.6 hours Start 2024.04.06 @ 10:13:18 End 2024.04.06 @ 13:55:05 Sessions 5 Manual Loads 0 Difficulty Rogue Special Mode None Game No. 14 Rogue 14 Adventurer 0 Explorer 0 Win Type - Total 0 Types 0/0/0/0/0/0/0/0/0 Lore% 16 Gallery% 20 Achievement% 17 Wizard Run 0 Options --------- Layout 1 ASCII 0 Keyboard 0 Movement Mouse Keybinds 0 Fullscreen 1 Font 24/Smallcaps Map View 50x40 Zoom Use 0% Tactical HUD 1 Map Filters NONE Filters NONE Steam 1 RUN: 728ff7d4-0afb-4679-a566-b8d8ba872bac